fUST/lending_fUST_20250831
["ID","MTS","AMOUNT","RATE_DAILY","PERIOD"]
[382481458,1756643452406,-581.33,0.00017793,2]
[382481459,1756643452415,-151.0,0.00017793,2]
[382481460,1756643452425,-480.0,0.00017793,2]
[382481461,1756643452434,-480.0,0.00017793,2]
[382481462,1756643452443,-480.0,0.00017793,2]
[382481463,1756643452452,-729.36,0.00017793,2]
[382481464,1756643452462,-480.0,0.00017793,2]
[382481465,1756643452471,-869.19,0.00017793,2]
[382481466,1756643452481,-480.0,0.00017793,2]
[382481467,1756643452490,-480.0,0.00017793,2]
[382481468,1756643452499,-480.0,0.00017793,2]
[382481469,1756643452509,-151.0,0.00017793,2]
[382481470,1756643452518,-1815.48,0.00017793,2]
[382481471,1756643452528,-480.0,0.00017793,2]
[382481472,1756643452537,-1506.67,0.00017793,2]
[382481473,1756643452547,-1782.93,0.00017793,2]
[382481474,1756643452556,-2064.03,0.00017793,2]
[382481475,1756643452565,-480.0,0.00017793,2]
[382481476,1756643452574,-480.0,0.00017793,2]
[382481477,1756643452584,-599.79,0.00017793,2]
[382481478,1756643452593,-11950.65,0.00017793,2]
[382481479,1756643452603,-480.0,0.00017793,2]
[382481480,1756643452612,-7266.03,0.00017793,2]
[382481481,1756643452622,-485.31157402,0.00017793,2]
[382481482,1756643452631,-480.0,0.00017793,2]
[382481483,1756643452643,-480.0,0.00017793,2]
[382481484,1756643452652,-480.0,0.00017793,2]
[382481485,1756643452662,-738.36,0.00017793,2]
[382481486,1756643452672,-3400.52,0.00017793,2]
[382481487,1756643452682,-2611.73,0.00017793,2]
[382481488,1756643452691,-480.0,0.00017793,2]
[382481489,1756643452701,-676.9,0.00017793,2]
[382481490,1756643452711,-502.4,0.00017793,2]
[382481491,1756643452720,-484.91050785,0.00017793,2]
[382481492,1756643452729,-1727.82,0.00017793,2]
[382481493,1756643452738,-1485.55,0.00017793,2]
[382481494,1756643452748,-1225.05,0.00017793,2]
[382481495,1756643452757,-480.0,0.00017793,2]
[382481496,1756643452771,-151.0,0.00017793,2]
[382481497,1756643452780,-151.0,0.00017793,2]
[382481498,1756643452789,-768.31,0.00017793,2]
[382481499,1756643452799,-480.0,0.00017793,2]
[382481500,1756643452809,-9795.82,0.00017793,2]
[382481501,1756643452819,-151.0,0.00017793,2]
[382481502,1756643452828,-151.0,0.00017793,2]
[382481503,1756643452838,-1794.98,0.00017793,2]
[382481504,1756643452850,-9350.55,0.00017793,2]
[382481505,1756643452860,-480.0,0.00017793,2]
[382481506,1756643452869,-535.44,0.00017793,2]
[382481507,1756643452879,-480.0,0.00017793,2]
[382481508,1756643452890,-480.0,0.00017793,2]
[382481509,1756643452899,-151.0,0.00017793,2]
[382481510,1756643452908,-151.0,0.00017793,2]
[382481511,1756643452917,-480.0,0.00017793,2]
[382481512,1756643452927,-4682.5,0.00017793,2]
[382481513,1756643452937,-185.876676,0.00017793,2]
[382481514,1756643452947,-858.19,0.00017793,2]
[382481515,1756643452956,-185.876676,0.00017793,2]
[382481516,1756643452966,-185.876676,0.00017793,2]
[382481517,1756643452976,-185.87667,0.00017793,2]
[382481518,1756643452985,-562.32,0.00017793,2]
[382481519,1756643452995,-480.0,0.00017793,2]
[382481520,1756643453004,-156.946248,0.00017793,2]
[382481521,1756643453013,-156.946248,0.00017793,2]
[382481522,1756643453022,-156.946248,0.00017793,2]
[382481523,1756643453032,-619.536546,0.00017793,2]
[382481524,1756643453041,-501.86,0.00017793,2]
[382481525,1756643453051,-673.45,0.00017793,2]
[382481526,1756643453060,-156.946249,0.00017793,2]
[382481527,1756643453069,-151.0,0.00017793,2]
[382481528,1756643453079,-619.536546,0.00017793,2]
[382481529,1756643453088,-619.536546,0.00017793,2]
[382481530,1756643453097,-619.536546,0.00017793,2]
[382481531,1756643453107,-480.0,0.00017794,2]
[382481532,1756643453116,-480.0,0.00017794,2]
[382481533,1756643453125,-480.0,0.00017794,2]
[382481534,1756643453135,-480.94,0.00017794,2]
[382481535,1756643453146,-480.0,0.00017794,2]
[382481536,1756643453155,-481.09469984,0.00017794,2]
[382481537,1756643453165,-480.0,0.00017794,2]
[382481538,1756643453174,-480.0,0.00017794,2]
[382481539,1756643453184,-480.0,0.00017794,2]
[382481540,1756643453193,-480.0,0.00017794,2]
[382481541,1756643453202,-1845.48,0.00017794,2]
[382481542,1756643453211,-480.0,0.00017794,2]
[382481543,1756643453221,-480.32030878,0.00017794,2]
[382481544,1756643453231,-312.43713229,0.00017794,2]
[382481545,1756643453243,-480.0,0.00017794,2]
[382481546,1756643453253,-481.12814767,0.00017794,2]
[382481547,1756643453263,-480.0,0.00017794,2]
[382481548,1756643453272,-502.79,0.00017794,2]
[382481549,1756643453283,-1734.94,0.00017794,2]
[382481550,1756643453295,-480.0,0.00017794,2]
[382481551,1756643453306,-480.0,0.00017794,2]
[382481552,1756643453316,-480.0,0.00017794,2]
[382481553,1756643453326,-480.0,0.00017794,2]
[382481554,1756643453336,-480.0,0.00017794,2]
[382481555,1756643453346,-480.0,0.00017794,2]
[382481556,1756643453356,-279.29495814,0.00017794,2]
[382481557,1756643453365,-400.0,0.00017794,2]
[382481558,1756643453374,-480.0,0.00017794,2]
[382481559,1756643453384,-480.0,0.00017794,2]
[382481560,1756643453394,-812.35,0.00017794,2]
[382481561,1756643453403,-480.0,0.00017794,2]
[382481562,1756643453412,-480.0,0.00017794,2]
[382481563,1756643453422,-480.0,0.00017794,2]
[382481564,1756643453431,-480.0,0.00017794,2]
[382481565,1756643453440,-480.0,0.00017794,2]
[382481566,1756643453449,-480.0,0.00017794,2]
[382481567,1756643453458,-1033.69,0.00017794,2]
[382481568,1756643453467,-480.0,0.00017794,2]
[382481569,1756643453477,-186.55579662,0.00017794,2]
[382481570,1756643453487,-1105.26,0.00017794,2]
[382481571,1756643453496,-480.0,0.00017794,2]
[382481572,1756643453505,-480.0,0.00017794,2]
[382481573,1756643453514,-480.0,0.00017794,2]
[382481574,1756643453524,-880.48,0.00017794,2]
[382481575,1756643453533,-534.67,0.00017794,2]
[382481576,1756643453543,-555.84,0.00017794,2]
[382481577,1756643453552,-480.0,0.00017794,2]
[382481578,1756643453562,-480.0,0.00017794,2]
[382481579,1756643453571,-480.0,0.00017794,2]
[382481580,1756643453580,-923.92,0.00017794,2]
[382481581,1756643453589,-480.0,0.00017794,2]
[382481582,1756643453599,-480.0,0.00017794,2]
[382481583,1756643453608,-1000.0,0.00017794,2]
[382481584,1756643453622,-480.0,0.00017794,2]
[382481585,1756643453638,-510.7510522,0.00017794,2]
[382481586,1756643453647,-151.0,0.00017794,2]
[382481587,1756643453657,-480.0,0.00017794,2]
[382481588,1756643453666,-410.49221079,0.00017794,2]
[382481589,1756643453676,-480.0,0.00017794,2]
[382481590,1756643453685,-538.7,0.00017794,2]
[382481591,1756643453694,-481.78518685,0.00017794,2]
[382481592,1756643453703,-1129.79,0.00017794,2]
[382481593,1756643453712,-480.0,0.00017794,2]
[382481594,1756643453722,-480.0,0.00017794,2]
[382481595,1756643453732,-480.0,0.00017794,2]
[382481596,1756643453741,-480.0,0.00017794,2]
[382481597,1756643453751,-480.0,0.00017794,2]
[382481598,1756643453760,-586.76,0.00017794,2]
[382481599,1756643453773,-480.0,0.00017794,2]
[382481600,1756643453783,-770.34,0.00017794,2]
[382481601,1756643453792,-480.0,0.00017794,2]
[382481602,1756643453801,-789.46,0.00017794,2]
[382481603,1756643453810,-480.0,0.00017794,2]
[382481604,1756643453820,-480.0,0.00017794,2]
[382481605,1756643453829,-480.0,0.00017794,2]
[382481606,1756643453838,-480.0,0.00017794,2]
[382481607,1756643453847,-480.0,0.00017794,2]
[382481608,1756643453987,-2898.88,0.00017794,2]
[382481609,1756643453997,-1587.95,0.00017794,2]
[382481610,1756643454006,-297.60048262,0.00017794,2]
[382481611,1756643454015,-643.67,0.00017794,2]
[382481612,1756643454025,-1737.4,0.00017794,2]
[382481613,1756643454034,-684.59,0.00017794,2]
[382481614,1756643454043,-1551.5,0.00017794,2]
[382481615,1756643454053,-930.35,0.00017794,2]
[382481616,1756643454062,-480.0,0.00017794,2]
[382481617,1756643454071,-480.0,0.00017794,2]
[382481618,1756643454081,-151.0,0.00017794,2]
[382481619,1756643454091,-151.0,0.00017794,2]
[382481620,1756643454100,-480.0,0.00017794,2]
[382481621,1756643454110,-225.188496,0.00017794,2]
[382481622,1756643454119,-480.0,0.00017794,2]
[382481623,1756643454129,-1853.64,0.00017794,2]
[382481624,1756643454138,-480.0,0.00017794,2]
[382481625,1756643454148,-151.0,0.00017794,2]
[382481626,1756643454158,-1059.09,0.00017794,2]
[382481627,1756643454167,-480.0,0.00017794,2]
[382481628,1756643454177,-1550.77,0.00017794,2]
[382481629,1756643454186,-480.0,0.00017794,2]
[382481630,1756643454195,-480.0,0.00017794,2]
[382481631,1756643454205,-480.0,0.00017794,2]
[382481632,1756643454214,-480.0,0.00017794,2]
[382481633,1756643454223,-480.0,0.00017794,2]
[382481634,1756643454232,-480.0,0.00017794,2]
[382481635,1756643454241,-480.0,0.00017794,2]
[382481636,1756643454251,-480.0,0.00017794,2]
[382481637,1756643454261,-572.76,0.00017794,2]
[382481638,1756643454271,-1733.66,0.00017794,2]
[382481639,1756643454280,-836.71,0.00017794,2]
[382481640,1756643454290,-480.0,0.00017794,2]
[382481641,1756643454299,-607.24,0.00017794,2]
[382481642,1756643454308,-480.0,0.00017794,2]
[382481643,1756643454318,-480.0,0.00017794,2]
[382481644,1756643454327,-480.0,0.00017794,2]
[382481645,1756643454336,-628.21,0.00017794,2]
[382481646,1756643454346,-175.10694815,0.00017794,2]
[382481647,1756643454355,-628.21,0.00017794,2]
[382481648,1756643454365,-481.29,0.00017794,2]
[382481649,1756643454374,-480.0,0.00017794,2]
[382481650,1756643454384,-324.0913876,0.00017794,2]
[382481651,1756643454394,-572.28,0.00017794,2]
[382481652,1756643454404,-571.99,0.00017794,2]
[382481653,1756643454414,-480.0,0.00017794,2]
[382481654,1756643454423,-480.0,0.00017794,2]
[382481655,1756643454432,-480.0,0.00017794,2]
[382481656,1756643454442,-519.29,0.00017794,2]
[382481657,1756643454451,-881.51,0.00017794,2]
[382481658,1756643454461,-1223.71,0.00017794,2]
[382481659,1756643454470,-581.67,0.00017794,2]
[382481660,1756643454479,-480.0,0.00017794,2]
[382481661,1756643454488,-480.0,0.00017794,2]
[382481662,1756643454497,-675.39,0.00017794,2]
[382481663,1756643454507,-480.0,0.00017794,2]
[382481664,1756643454524,-480.0,0.00017794,2]
[382481665,1756643454533,-858.4,0.00017794,2]
[382481666,1756643454545,-1003.54527382,0.00017794,2]
[382481667,1756643454555,-480.0,0.00017794,2]
[382481668,1756643454564,-480.0,0.00017794,2]
[382481669,1756643454574,-480.0,0.00017794,2]
[382481670,1756643454583,-811.98,0.00017794,2]
[382481671,1756643454592,-480.0,0.00017794,2]
[382481672,1756643454601,-480.0,0.00017794,2]
[382481673,1756643454610,-503.8,0.00017794,2]
[382481674,1756643454619,-480.0,0.00017794,2]
[382481675,1756643454629,-480.0,0.00017794,2]
[382481676,1756643454639,-480.0,0.00017794,2]
[382481677,1756643454648,-831.83,0.00017794,2]
[382481678,1756643454658,-480.0,0.00017794,2]
[382481679,1756643454668,-867.44,0.00017794,2]
[382481680,1756643454677,-480.0,0.00017794,2]
[382481681,1756643454687,-480.0,0.00017794,2]
[382481682,1756643454696,-480.0,0.00017794,2]
[382481683,1756643454706,-586.48,0.00017794,2]
[382481684,1756643454716,-480.0,0.00017794,2]
[382481685,1756643454726,-500.0,0.00017794,2]
[382481686,1756643454736,-480.73,0.00017794,2]
[382481687,1756643454746,-659.58,0.00017794,2]
[382481688,1756643454756,-480.0,0.00017794,2]
[382481689,1756643454769,-496.54,0.00017794,2]
[382481690,1756643454779,-480.0,0.00017794,2]
[382481691,1756643454788,-966.64,0.00017794,2]
[382481692,1756643454798,-480.0,0.00017794,2]
[382481693,1756643454808,-480.0,0.00017794,2]
[382481694,1756643454817,-480.0,0.00017794,2]
[382481695,1756643454827,-480.0,0.00017794,2]
[382481696,1756643454837,-480.0,0.00017794,2]
[382481697,1756643454846,-480.0,0.00017794,2]
[382481698,1756643454856,-480.0,0.00017794,2]
[382481699,1756643454866,-1399.32,0.00017794,2]
[382481700,1756643454875,-480.0,0.00017794,2]
[382481701,1756643454884,-1079.7,0.00017794,2]
[382481702,1756643454894,-480.0,0.00017794,2]
[382481703,1756643454904,-405.51587298,0.00017794,2]
[382481704,1756643454913,-580.87,0.00017794,2]
[382481705,1756643454922,-480.0,0.00017794,2]
[382481706,1756643454932,-1076.16,0.00017794,2]
[382481707,1756643454942,-480.0,0.00017794,2]
[382481708,1756643454951,-1260.41,0.00017794,2]
[382481709,1756643454960,-193.694951,0.00017794,2]
[382481710,1756643454970,-480.0,0.00017794,2]
[382481711,1756643454979,-480.0,0.00017794,2]
[382481712,1756643454989,-961.35,0.00017794,2]
[382481713,1756643454998,-480.0,0.00017794,2]
[382481714,1756643455008,-480.0,0.00017794,2]
[382481715,1756643455017,-564.21,0.00017794,2]
[382481716,1756643455026,-480.0,0.00017794,2]
[382481717,1756643455035,-480.0,0.00017794,2]
[382481718,1756643455045,-480.0,0.00017794,2]
[382481719,1756643455054,-480.0,0.00017794,2]
[382481720,1756643455063,-582.99,0.00017794,2]
[382481721,1756643455073,-1173.05,0.00017794,2]
[382481722,1756643455093,-480.0,0.00017794,2]
[382481723,1756643455103,-480.0,0.00017794,2]
[382481724,1756643455112,-754.46,0.00017794,2]
[382481725,1756643455122,-480.0,0.00017794,2]
[382481726,1756643455132,-504.7,0.00017794,2]
[382481727,1756643455142,-1317.7,0.00017794,2]
[382481728,1756643455153,-480.0,0.00017794,2]
[382481729,1756643455163,-480.0,0.00017794,2]
[382481730,1756643455173,-480.0,0.00017794,2]
[382481731,1756643455183,-151.0,0.00017794,2]
[382481732,1756643455193,-480.0,0.00017794,2]
[382481733,1756643455203,-872.85,0.00017794,2]
[382481734,1756643455213,-151.0,0.00017794,2]
[382481735,1756643455222,-480.0,0.00017794,2]
[382481736,1756643455232,-921.53,0.00017794,2]
[382481737,1756643455241,-480.0,0.00017794,2]
[382481738,1756643455251,-480.0,0.00017794,2]
[382481739,1756643455260,-618.42,0.00017794,2]
[382481740,1756643455269,-480.0,0.00017794,2]
[382481741,1756643455278,-605.84,0.00017794,2]
[382481742,1756643455288,-480.0,0.00017794,2]
[382481743,1756643455297,-480.0,0.00017794,2]
[382481744,1756643455307,-480.0,0.00017794,2]
[382481745,1756643455317,-2163.1,0.00017794,2]
[382481746,1756643455327,-598.65,0.00017794,2]
[382481747,1756643455336,-480.69081321,0.00017794,2]
[382481748,1756643455346,-902.36,0.00017794,2]
[382481749,1756643455356,-619.536546,0.00017794,2]
[382481750,1756643455366,-151.0,0.00017794,2]
[382481751,1756643455376,-619.536546,0.00017794,2]
[382481752,1756643455386,-619.536546,0.00017794,2]
[382481753,1756643455395,-619.53654,0.00017794,2]
[382481754,1756643455404,-628.21,0.00017795,2]
[382481755,1756643455414,-628.21,0.00017795,2]
[382481756,1756643455424,-628.21,0.00017795,2]
[382481757,1756643455434,-628.21,0.00017795,2]
[382481758,1756643455443,-628.21,0.00017795,2]
[382481759,1756643455453,-628.28109214,0.00017795,2]
[382481760,1756643455462,-480.0,0.00017796,2]
[382481761,1756643455472,-480.0,0.00017796,2]
[382481762,1756643455481,-995.45,0.00017796,2]
[382481763,1756643455491,-565.23,0.00017796,2]
[382481764,1756643455500,-568.55,0.00017796,2]
[382481765,1756643455510,-906.01,0.00017796,2]
[382481766,1756643455520,-1167.98,0.00017796,2]
[382481767,1756643455529,-1358.67,0.00017796,2]
[382481768,1756643455539,-151.0,0.00017796,2]
[382481769,1756643455548,-151.0,0.00017796,2]
[382481770,1756643455559,-151.0,0.00017796,2]
[382481771,1756643455568,-480.0,0.00017796,2]
[382481772,1756643455578,-1359.56,0.00017796,2]
[382481773,1756643455588,-188.33928,0.00017796,2]
[382481774,1756643455598,-656.14,0.00017796,2]
[382481775,1756643455608,-480.0,0.00017796,2]
[382481776,1756643455617,-480.0,0.00017796,2]
[382481777,1756643455627,-501.15,0.00017796,2]
[382481778,1756643455636,-480.0,0.00017796,2]
[382481779,1756643455646,-481.7167146,0.00017796,2]
[382481780,1756643455656,-715.88,0.00017796,2]
[382481781,1756643455665,-281.154866,0.00017796,2]
[382481782,1756643455675,-480.64942555,0.00017797,2]
[382481783,1756643455685,-480.0,0.00017797,2]
[382481784,1756643455695,-624.76,0.00017797,2]
[382481785,1756643455704,-723.8,0.00017797,2]
[382481786,1756643455713,-620.5,0.00017797,2]
[382481787,1756643455723,-480.0,0.00017797,2]
[382481788,1756643455733,-480.0,0.00017797,2]
[382481789,1756643455743,-1696.18,0.00017797,2]
[382481790,1756643455752,-480.0,0.00017797,2]
[382481791,1756643455762,-591.58,0.00017797,2]
[382481792,1756643455774,-481.39767338,0.00017797,2]
[382481793,1756643455784,-910.94,0.00017797,2]
[382481794,1756643455793,-200.0,0.00017797,3]
[382481795,1756643455804,-200.0,0.00017797,3]
[382481796,1756643455815,-200.0,0.00017797,3]
[382481797,1756643455825,-200.0,0.00017797,3]
[382481798,1756643455836,-200.0,0.00017797,3]
[382481799,1756643455846,-480.0,0.00017797,2]
[382481800,1756643455859,-480.0,0.00017797,2]
[382481801,1756643455870,-480.0,0.00017797,2]
[382481802,1756643455880,-705.65,0.00017797,2]
[382481803,1756643455890,-480.0,0.00017797,2]
[382481804,1756643455900,-480.0,0.00017797,2]
[382481805,1756643455909,-480.0,0.00017797,2]
[382481806,1756643455919,-480.0,0.00017797,2]
[382481807,1756643455928,-487.56151785,0.00017797,2]
[382481808,1756643455937,-762.83,0.00017797,2]
[382481809,1756643455947,-642.22,0.00017797,2]
[382481810,1756643455956,-480.0,0.00017797,2]
[382481811,1756643455966,-574.82,0.00017797,2]
[382481812,1756643455977,-151.0,0.000178,2]
[382481813,1756643455986,-151.0,0.000178,2]
[382481814,1756643455995,-500.0,0.00017801,2]
[382481815,1756643456004,-151.0,0.00017801,2]
[382481816,1756643456014,-151.0,0.00017801,2]
[382481817,1756643456023,-500.0,0.00017801,2]
[382481818,1756643456033,-500.0,0.00017801,2]
[382481819,1756643456043,-151.0,0.00017801,2]
[382481820,1756643456052,-151.0,0.00017801,2]
[382481821,1756643456062,-151.0,0.00017801,2]
[382481822,1756643456071,-160.0,0.00017807,2]
[382481823,1756643456080,-160.0,0.00017815,2]
[382481824,1756643456090,-530.02580203,0.00017815,2]
[382481825,1756643456099,-417.15472785,0.00017815,2]
[382481826,1756643456265,-217.4012883,0.00017815,2]
[382481827,1756643456274,-160.0,0.00017815,2]
[382481828,1756643456283,-425.75173308,0.00017815,2]
[382481829,1756643456293,-160.0,0.00017815,2]
[382481830,1756643456302,-232.78794292,0.00017815,2]
[382481831,1756643456312,-160.0,0.00017815,2]
[382481832,1756643456321,-845.95363151,0.00017815,2]
[382481833,1756643456331,-188.24652281,0.00017815,2]
[382481834,1756643456341,-160.0,0.00017815,2]
[382481835,1756643456350,-160.0,0.00017815,2]
[382481836,1756643456360,-11364.23969824,0.00017816,2]
[382481837,1756643456370,-160.0,0.00017825,2]
[382481838,1756643456380,-160.0,0.00017825,2]
[382481839,1756643456389,-168.0,0.00017829,2]
[382481840,1756643456399,-151.0,0.000179,2]
[382481841,1756643456408,-151.0,0.000179,2]
[382481842,1756643456418,-320.65455601,0.00017903,2]
[382481843,1756643456427,-451.11541133,0.00017903,2]
[382481844,1756643456436,-1281.33560582,0.00017903,2]
[382481845,1756643456446,-1804.4616453,0.00017903,2]
[382481846,1756643456455,-233.02457879,0.00017903,2]
[382481847,1756643456465,-678.23127621,0.00017903,2]
[382481848,1756643456475,-168.0,0.00017948,2]
[382481849,1756643456484,-13704.06711517,0.00017965,2]
[382481850,1756643456494,-151.0,0.00018,2]
[382481851,1756643456503,-151.0,0.00018,2]
[382481852,1756643456514,-151.0,0.00018,2]
[382481853,1756643456523,-151.0,0.00018,2]
[382481854,1756643456533,-151.0,0.00018,2]
[382481855,1756643456543,-151.0,0.00018,2]
[382481856,1756643456552,-151.0,0.00018,2]
[382481857,1756643456562,-158708.97311038,0.00018,2]
[382481858,1756643456571,-9567.19967618,0.00018,2]
[382481859,1756643456581,-23104.43973852,0.00018,2]
[382481860,1756643456590,-916.14,0.00018,2]
[382481861,1756643456599,-261.0,0.00018005,2]
[382481862,1756643456609,-2070.0,0.00018006,2]
[382481863,1756643456619,-168.0,0.00018006,2]
[382481864,1756643456628,-4060.03870193,0.00018031,2]
[382481865,1756643456638,-480.0,0.00018061,2]
[382481866,1756643456647,-679.7,0.00018061,2]
[382481867,1756643456656,-1507.79,0.00018061,2]
[382481868,1756643456666,-829.44,0.00018061,2]
[382481869,1756643456675,-500.0,0.00018062,2]
[382481870,1756643456685,-480.0,0.00018063,2]
[382481871,1756643456694,-1078.61,0.00018063,2]
[382481872,1756643456703,-1302.63,0.00018063,2]
[382481873,1756643456713,-3033.82,0.00018063,2]
[382481874,1756643456723,-1393.8,0.00018063,2]
[382481875,1756643456732,-3532.23,0.00018063,2]
[382481876,1756643456742,-492.8,0.00018064,2]
[382481877,1756643456751,-480.0,0.00018064,2]
[382481878,1756643456760,-480.0,0.00018064,2]
[382481879,1756643456773,-4002.83,0.00018064,2]
[382481880,1756643456783,-605.12,0.00018064,2]
[382481881,1756643456792,-480.0,0.00018064,2]
[382481882,1756643456802,-1082.02,0.00018064,2]
[382481883,1756643456812,-1396.78,0.00018064,2]
[382481884,1756643456821,-480.0,0.00018064,2]
[382481885,1756643456831,-1577.46,0.00018064,2]
[382481886,1756643456840,-480.0,0.00018064,2]
[382481887,1756643456850,-950.4,0.00018064,2]
[382481888,1756643456860,-624.1,0.00018064,2]
[382481889,1756643456869,-480.0,0.00018064,2]
[382481890,1756643456879,-863.43,0.00018064,2]
[382481891,1756643456890,-480.0,0.00018064,2]
[382481892,1756643456899,-5790.36,0.00018064,2]
[382481893,1756643456908,-1497.05,0.00018064,2]
[382481894,1756643456918,-4813.24,0.00018064,2]
[382481895,1756643456927,-720.08,0.00018064,2]
[382481896,1756643456937,-4038.61,0.00018064,2]
[382481897,1756643456946,-480.0,0.00018064,2]
[382481898,1756643456955,-573.36,0.00018064,2]
[382481899,1756643456965,-480.0,0.00018064,2]
[382481900,1756643456974,-1542.0,0.00018065,2]
[382481901,1756643456983,-500.0,0.00018065,2]
[382481902,1756643456992,-500.0,0.00018065,2]
[382481903,1756643457002,-500.0,0.00018065,2]
[382481904,1756643457011,-213.88174703,0.00018065,2]
[382481905,1756643457020,-500.0,0.00018065,2]
[382481906,1756643457029,-500.0,0.00018065,2]
[382481907,1756643457038,-151.0,0.00018065,2]
[382481908,1756643457047,-500.0,0.00018065,2]
[382481909,1756643457057,-480.0,0.00018065,2]
[382481910,1756643457066,-506.69074386,0.00018065,2]
[382481911,1756643457075,-526.87,0.00018065,2]
[382481912,1756643457085,-480.0,0.00018065,2]
[382481913,1756643457094,-995.77,0.00018065,2]
[382481914,1756643457103,-896.55,0.00018065,2]
[382481915,1756643457113,-480.0,0.00018065,2]
[382481916,1756643457122,-480.0,0.00018065,2]
[382481917,1756643457132,-480.0,0.00018065,2]
[382481918,1756643457141,-1285.66,0.00018065,2]
[382481919,1756643457151,-480.0,0.00018065,2]
[382481920,1756643457161,-1733.99,0.00018065,2]
[382481921,1756643457171,-1378.36,0.00018065,2]
[382481922,1756643457182,-480.0,0.00018065,2]
[382481923,1756643457193,-815.02,0.00018065,2]
[382481924,1756643457202,-811.53,0.00018065,2]
[382481925,1756643457212,-505.77,0.00018065,2]
[382481926,1756643457221,-776.28,0.00018065,2]
[382481927,1756643457230,-480.0,0.00018065,2]
[382481928,1756643457239,-984.98,0.00018065,2]
[382481929,1756643457249,-1291.1,0.00018065,2]
[382481930,1756643457258,-1227.32,0.00018065,2]
[382481931,1756643457268,-1592.65,0.00018065,2]
[382481932,1756643457277,-1212.94,0.00018065,2]
[382481933,1756643457287,-1620.98,0.00018065,2]
[382481934,1756643457298,-830.59,0.00018065,2]
[382481935,1756643457307,-480.0,0.00018065,2]
[382481936,1756643457316,-486.92,0.00018065,2]
[382481937,1756643457325,-1224.88,0.00018065,2]
[382481938,1756643457336,-846.27,0.00018065,2]
[382481939,1756643457346,-480.0,0.00018065,2]
[382481940,1756643457355,-907.91,0.00018065,2]
[382481941,1756643457365,-1249.46,0.00018065,2]
[382481942,1756643457375,-1797.0,0.00018065,2]
[382481943,1756643457384,-1017.18,0.00018065,2]
[382481944,1756643457395,-537.14,0.00018065,2]
[382481945,1756643457404,-1954.87,0.00018065,2]
[382481946,1756643457413,-480.0,0.00018065,2]
[382481947,1756643457422,-2223.44,0.00018065,2]
[382481948,1756643457431,-480.0,0.00018065,2]
[382481949,1756643457440,-480.0,0.00018065,2]
[382481950,1756643457450,-1539.06,0.00018065,2]
[382481951,1756643457459,-1744.87,0.00018065,2]
[382481952,1756643457468,-1405.65,0.00018065,2]
[382481953,1756643457477,-1975.18,0.00018065,2]
[382481954,1756643457487,-703.18,0.00018065,2]
[382481955,1756643457496,-2498.38,0.00018065,2]
[382481956,1756643457506,-852.74,0.00018065,2]
[382481957,1756643457515,-840.69,0.00018065,2]